lending/lending_fUSD_20250621
["ID","MTS","AMOUNT","RATE_DAILY","PERIOD"]
[366846640,1750509038534,-349.09386877,0.00023866,10]
[366846641,1750509038544,-157.20199517,0.00023871,2]
[366846642,1750509038553,-150.0,0.00023933,2]
[366846643,1750509038564,-501.8520891,0.00023973,2]
[366846644,1750509038574,-150.0,0.00023974,5]
[366846645,1750509038583,-1000.0,0.00024,2]
[366846646,1750509038595,-157.20199517,0.00024018,2]
[366846647,1750509038604,-340.0,0.000241,2]
[366846648,1750509038614,-797.81,0.00024101,2]
[366846649,1750509038623,-764.956,0.00024111,6]
[366846650,1750509038632,-503.0,0.00024146,2]
[366846651,1750509038642,-157.20199517,0.00024165,2]
[366846652,1750509038651,-157.20199517,0.00024312,2]
[366846653,1750509038660,-349.09386877,0.00024348,11]
[366846654,1750509038669,-503.0,0.0002438,2]
[366846655,1750509038679,-156.587,0.00024446,2]
[366846656,1750509038689,-215.0738,0.00024446,2]
[366846657,1750509038698,-1000.0,0.0002445,2]
[366846658,1750509038707,-157.20199517,0.00024459,2]
[366846659,1750509038716,-406.36077028,0.00024463,2]
[366846660,1750509038726,-1000.0,0.00024463,2]
[366846661,1750509038736,-1000.0,0.00024488,2]
[366846662,1750509038745,-245.4,0.000245,2]
[366846663,1750509038754,-303.27,0.000245,2]
[366846664,1750509038765,-300.0,0.000245,8]
[366846665,1750509038774,-150.0,0.00024514,2]
[366846666,1750509038783,-150.0,0.00024539,2]
[366846667,1750509038793,-150.0,0.00024579,2]
[366846668,1750509038802,-2649.8701365,0.00024583,2]
[366846669,1750509038811,-319.67490402,0.00024583,2]
[366846670,1750509038820,-605.6317,0.00024583,2]
[366846671,1750509038830,-2500.0,0.00024583,2]
[366846672,1750509038839,-150.0,0.00024592,2]
[366846673,1750509038848,-150.0,0.00024595,2]
[366846674,1750509038858,-150.94302572,0.000246,2]
[366846675,1750509038867,-5000.0,0.000246,2]
[366846676,1750509038876,-894.556144,0.000246,2]
[366846677,1750509038886,-558.6462,0.000246,3]
[366846678,1750509038895,-600.0,0.000246,8]
[366846679,1750509038905,-200.0,0.000246,2]
[366846680,1750509038914,-150.0,0.00024614,2]
[366846681,1750509038923,-1000.0,0.00024645,2]
[366846682,1750509038932,-150.0,0.00024647,2]
[366846683,1750509038941,-6015.0,0.00024658,4]
[366846684,1750509038950,-350.0,0.00024664,2]
[366846685,1750509038960,-500.0,0.0002467,2]
[366846686,1750509038969,-500.0,0.0002467,2]
[366846687,1750509038978,-600.91536243,0.0002467,2]
[366846688,1750509038987,-1000.0,0.0002467,2]
[366846689,1750509038996,-1000.0,0.0002467,2]
[366846690,1750509039006,-1000.0,0.0002467,2]
[366846691,1750509039015,-160.1772958,0.00024673,2]
[366846692,1750509039024,-637.28,0.00024673,2]
[366846693,1750509039033,-40977.8148489,0.00024683,2]
[366846694,1750509039042,-1246.7429805,0.00024683,2]
[366846695,1750509039052,-5750.8156925,0.00024683,2]
[366846696,1750509039061,-3375.8057999,0.00024683,2]
[366846697,1750509039070,-17906.1626217,0.00024683,2]
[366846698,1750509039080,-201.7205283,0.00024683,2]
[366846699,1750509039089,-11460.3593803,0.00024683,2]
[366846700,1750509039099,-15006.1169713,0.00024683,2]
[366846701,1750509039107,-249362.3117662,0.00024683,2]
[366846702,1750509039117,-281.9470948,0.00024683,2]
[366846703,1750509039126,-2491.991459,0.00024683,2]
[366846704,1750509039135,-357.71891414,0.00024685,120]
[366846705,1750509039144,-1423.83854959,0.00024685,120]
[366846706,1750509039153,-151.0,0.00024689,2]
[366846707,1750509039162,-151.0,0.00024689,2]
[366846708,1750509039171,-182.85802,0.00024689,2]
[366846709,1750509039181,-500.0,0.00024689,2]
[366846710,1750509039190,-500.0,0.00024689,2]
[366846711,1750509039199,-500.0,0.00024689,2]
[366846712,1750509039208,-505.27650657,0.00024689,2]
[366846713,1750509039218,-500.0,0.00024689,2]
[366846714,1750509039227,-311.46059264,0.00024689,2]
[366846715,1750509039236,-424.42231469,0.00024689,2]
[366846716,1750509039246,-500.0,0.00024689,2]
[366846717,1750509039255,-1028.34530853,0.0002469,5]
[366846718,1750509039264,-151.48,0.0002469,2]
[366846719,1750509039273,-247.41,0.00024692,2]
[366846720,1750509039283,-251.5,0.00024692,2]
[366846721,1750509039293,-304.01,0.00024692,2]
[366846722,1750509039302,-250.06,0.00024692,2]
[366846723,1750509039311,-3140017.99662775,0.00024692,4]
[366846724,1750509039330,-573.5883305,0.00023447,2]
[366846725,1750509039341,-260.67643523,0.00023447,2]
[366846726,1750509039351,-798136.26032271,0.00024692,4]
[366846727,1750509039363,-1348.52228421,0.00024692,4]
[366846728,1750509039393,-1240.07,0.00024692,4]
[366846729,1750509039404,-421.13683,0.00024692,4]
[366846730,1750509039415,-1021.34364574,0.00024692,4]
[366846731,1750509039427,-3634.19874741,0.00024692,4]
[366846732,1750509039438,-572.97647651,0.00024692,4]
[366846733,1750509039450,-654.9199999,0.00024692,4]
[366846741,1750509040159,-150.0,0.00024481,2]
[366846742,1750509040169,-150.0,0.00024486,2]
[366846743,1750509040179,-150.0,0.00024515,2]
[366846744,1750509040189,-150.0,0.00024567,2]
[366846745,1750509040198,-150.0,0.00024581,2]
[366846747,1750509040208,-150.0,0.0002462,2]
[366846748,1750509040217,-16.76566918,0.00024642,2]
[366846749,1750509040274,-15.22238883,0.00024642,2]
[366846750,1750509040304,-118.01194199,0.00024642,2]
[366846751,1750509040313,-5233.31885801,0.00024692,4]
[366846753,1750509040324,-15134.27374972,0.00024692,4]
[366846758,1750509040361,-171.35673745,0.00023381,2]
[366846759,1750509040370,-365.00829471,0.00024692,4]
[366846793,1750509043800,-4040.0,0.00023508,2]
[366846794,1750509043838,-640.1603246,0.00023508,2]
[366846795,1750509043898,-2454.8396754,0.00023508,2]
[366846796,1750509043908,-150.0,0.00024458,2]
[366846797,1750509043917,-150.0,0.00024479,2]
[366846798,1750509043927,-150.0,0.00024511,2]
[366846799,1750509043936,-150.0,0.00024554,2]
[366846800,1750509043944,-150.0,0.00024596,2]
[366846801,1750509043953,-157.20199517,0.00024606,2]
[366846802,1750509043961,-150.0,0.00024653,2]
[366846803,1750509043970,-150.0,0.00024687,2]
[366846804,1750509043977,-4692.39139395,0.00024692,4]
[366846805,1750509044001,-24400.13057968,0.00024692,4]
[366846816,1750509642520,179.34,0.00013699,2]
[366846977,1750510219251,-300.0,0.00019999,2]
[366846978,1750510219273,-1200.0,0.00019999,2]
[366846979,1750510219293,-2500.0,0.00019999,2]
[366846980,1750510219314,-2500.0,0.0002,2]
[366846981,1750510219336,-205.04971272,0.0002,4]
[366846982,1750510219359,-318.96621979,0.0002,7]
[366846983,1750510219382,-277.57009346,0.0002,7]
[366846984,1750510219405,-322.42990654,0.0002,7]
[366846985,1750510219429,-240.43023529,0.0002,4]
[366846986,1750510219451,-172.42976471,0.0002,4]
[366846987,1750510219473,-349.41176471,0.0002,7]
[366846988,1750510219495,-250.58823529,0.0002,7]
[366846989,1750510219516,-252.30333333,0.0002,7]
[366846990,1750510219538,-160.55666667,0.0002,4]
[366846991,1750510219559,-155.10559348,0.0002,2]
[366846992,1750510219581,-202.72573182,0.0002,7]
[366846993,1750510219603,-242.1686747,0.0002,4]
[366846994,1750510219626,-246.22373494,0.0002,4]
[366846995,1750510219649,-104.04033255,0.0002,4]
[366846996,1750510221402,-62.59593251,0.0002,4]
[366846997,1750510221423,-152.93373684,0.0002,2]
[366846998,1750510221445,-198.5455531,0.0002,7]
[366846999,1750510221467,-248.52071006,0.0002,4]
[366847000,1750510221488,-233.5608,0.0002,4]
[366847001,1750510221509,-179.2992,0.0002,4]
[366847002,1750510221530,-339.42857143,0.0002,7]
[366847003,1750510221551,-260.57142857,0.0002,7]
[366847004,1750510221573,-228.34156425,0.0002,4]
[366847005,1750510221595,-184.51843575,0.0002,4]
[366847006,1750510221617,-324.59016393,0.0002,7]
[366847007,1750510221639,-275.40983607,0.0002,7]
[366847008,1750510221660,-223.3504918,0.0002,4]
[366847009,1750510221682,-189.5095082,0.0002,4]
[366847010,1750510221706,-319.35483871,0.0002,7]
[366847011,1750510221729,-280.64516129,0.0002,7]
[366847012,1750510221753,-217.41031915,0.0002,4]
[366847013,1750510221775,-195.44968085,0.0002,4]
[366847014,1750510221796,-226.71755725,0.0002,4]
[366847015,1750510221820,-373.28244275,0.0002,7]
[366847016,1750510222124,-216.26,0.0002,4]
[366847017,1750510222166,-196.6,0.0002,4]
[366847018,1750510222192,-309.375,0.0002,7]
[366847019,1750510222214,-290.625,0.0002,7]
[366847020,1750510222235,-209.60584615,0.0002,4]
[366847021,1750510222256,-203.25415385,0.0002,4]
[366847022,1750510222278,-600.0,0.0002,7]
[366847023,1750510222301,-205.39266332,0.0002,4]
[366847024,1750510222323,-207.46733668,0.0002,4]
[366847025,1750510222346,-294.05940594,0.0002,7]
[366847026,1750510222367,-305.94059406,0.0002,7]
[366847027,1750510222390,-202.34227723,0.0002,4]
[366847028,1750510222416,-210.51772277,0.0002,4]
[366847029,1750510222439,-289.75609756,0.0002,7]
[366847030,1750510222460,-310.24390244,0.0002,7]
[366847031,1750510222482,-195.56526316,0.0002,4]
[366847032,1750510222503,-217.29473684,0.0002,4]
[366847033,1750510222524,-277.57009346,0.0002,7]
[366847034,1750510222547,-322.42990654,0.0002,7]
[366847035,1750510222569,-190.99598131,0.0002,4]
[366847036,1750510222591,-30.66808618,0.0002,4]
[366847037,1750510222621,-191.19593251,0.0002,4]
[366847038,1750510222644,-272.47706422,0.0002,7]
[366847039,1750510222667,-327.52293578,0.0002,7]
[366847040,1750510222689,-184.11324324,0.0002,4]
[366847041,1750510222710,-228.74675676,0.0002,4]
[366847042,1750510222731,-267.56756757,0.0002,7]
[366847043,1750510222755,-332.43243243,0.0002,7]
[366847044,1750510222777,-184.11324324,0.0002,4]
[366847045,1750510222800,-228.74675676,0.0002,4]
[366847046,1750510222822,-261.67400881,0.0002,7]
[366847047,1750510222844,-338.32599119,0.0002,7]
[366847048,1750510222867,-178.48532751,0.0002,4]
[366847049,1750510222889,-234.37467249,0.0002,4]
[366847050,1750510222910,-257.14285714,0.0002,4]
[366847051,1750510222933,-342.85714286,0.0002,7]
[366847052,1750510222955,-238.18846154,0.0002,4]
[366847053,1750510222979,-249.57983193,0.0002,4]
[366847054,1750510223001,-152.47289756,0.0002,2]
[366847055,1750510223024,-197.94727051,0.0002,7]
[366847056,1750510223047,-171.73588235,0.0002,4]
[366847057,1750510223070,-241.12411765,0.0002,4]
[366847058,1750510223094,-246.47302905,0.0002,4]
[366847059,1750510223114,-155.00797957,0.0002,2]
[366847060,1750510223135,-198.51899138,0.0002,7]
[366847061,1750510223156,-166.82914286,0.0002,4]
[366847062,1750510223177,-246.03085714,0.0002,4]
[366847063,1750510223198,-242.44897959,0.0002,4]
[366847064,1750510223219,-154.39703154,0.0002,2]
[366847065,1750510223240,-164.81104839,0.0002,4]
[366847066,1750510223260,-248.04895161,0.0002,4]
[366847067,1750510223281,-239.51612903,0.0002,4]
[366847068,1750510223302,-157.45272525,0.0002,2]
[366847069,1750510223324,-162.84119522,0.0002,4]
[366847070,1750510223346,-250.01880478,0.0002,4]
[366847071,1750510223372,-234.7826087,0.0002,4]
[366847072,1750510223395,-160.7520564,0.0002,2]
[366847073,1750510223416,-159.66070312,0.0002,4]
[366847074,1750510223438,-253.19929688,0.0002,4]
[366847075,1750510223460,-232.03125,0.0002,4]
[366847076,1750510223483,-161.96307915,0.0002,2]
[366847077,1750510223509,-156.60206897,0.0002,4]
[366847078,1750510223536,-256.25793103,0.0002,4]
[366847079,1750510223558,-227.5862069,0.0002,4]
[366847080,1750510223582,-162.0426428,0.0002,2]
[366847081,1750510223606,-154.89832133,0.0002,4]
[366847082,1750510223629,-127.00457526,0.0002,4]
[366847091,1750510231687,-131.15929361,0.0002,4]
[366847092,1750510231698,-179.34,0.00020187,2]
[366847093,1750510231707,-67.16925865,0.0002142,2]
[366847094,1750510231744,-2432.83074135,0.0002142,2]
[366847095,1750510231753,-355.0281366,0.00021999,2]
[366847096,1750510231764,-298.695,0.00021999,2]
[366847097,1750510231805,-306.08175989,0.00021999,2]
[366847098,1750510231817,-510.54,0.00021999,2]
[366847099,1750510231828,-1029.65510351,0.00021999,2]
[366847100,1750510231838,-2500.0,0.00021999,2]
[366847101,1750510231847,-300.0,0.00021999,2]
[366847102,1750510231857,-300.0,0.00021999,2]
[366847103,1750510231867,-161.0,0.00022,2]
[366847104,1750510231877,-349.09386899,0.00022,6]
[366847105,1750510231887,-349.09386877,0.00022,6]
[366847106,1750510231896,-349.09386877,0.00022,6]
[366847107,1750510231906,-349.09386877,0.00022,6]
[366847108,1750510231915,-201.0,0.0002215,2]
[366847109,1750510231925,-201.0,0.0002215,2]
[366847110,1750510231934,-834.26476573,0.00022185,2]
[366847111,1750510231943,-349.09386877,0.00022383,7]
[366847112,1750510231953,-834.26476573,0.00022383,7]
[366847113,1750510231963,-500.0,0.00022411,2]
[366847114,1750510231973,-150.99,0.00022562,2]
[366847115,1750510231983,-8766.46,0.00022562,2]
[366847116,1750510231994,-1173.58685625,0.00022562,2]
[366847117,1750510232006,-4800.00000001,0.00022562,2]
[366847118,1750510232018,-542.468985,0.00022562,2]
[366847119,1750510232030,-3483.93415874,0.00022562,2]
[366847120,1750510232041,-7634.10325888,0.00022562,2]
[366847121,1750510232053,-408.96674112,0.00022562,2]
[366847122,1750510232065,-5998.03325888,0.00022562,2]
[366847123,1750510232079,-450.037073,0.00022562,2]
[366847124,1750510232091,-2862.54966812,0.00022562,2]
[366847126,1750510232101,-500.0,0.00022603,2]
[366847127,1750510232110,-666.0,0.00022745,2]
[366847128,1750510232120,-200.0,0.00022756,2]
[366847129,1750510232130,-500.0,0.0002276,2]
[366847130,1750510232139,-587.4,0.00022764,2]
[366847131,1750510232151,-924.61,0.00022771,2]
[366847132,1750510232161,-168.0,0.00022785,2]
[366847133,1750510232170,-4202.09,0.00022836,2]
[366847134,1750510232180,-1095.02,0.00022846,2]
[366847135,1750510232190,-250.0,0.00022999,2]
[366847136,1750510232199,-200.0,0.00023,2]
[366847137,1750510232209,-349.09386877,0.00023003,8]
[366847138,1750510232218,-161.0,0.00023014,7]
[366847139,1750510232228,-168.0,0.00023076,2]
[366847140,1750510232238,-1957.856,0.00023077,2]
[366847141,1750510232247,-207.4,0.00023077,2]
[366847142,1750510232256,-2030.296672,0.00023132,2]
[366847143,1750510232266,-223.0,0.0002318,2]
[366847144,1750510232276,-2105.41764886,0.00023187,2]
[366847145,1750510232286,-186.25,0.00023225,2]
[366847146,1750510232295,-2183.31810187,0.00023242,2]
[366847147,1750510232305,-1000.0,0.00023256,2]
[366847148,1750510232316,-223.0,0.00023263,2]
[366847149,1750510232325,-150.0,0.00023271,2]
[366847150,1750510232335,-151.0,0.0002329,2]
[366847151,1750510232345,-2264.10087164,0.00023297,2]
[366847152,1750510232355,-200.0,0.00023301,2]
[366847153,1750510232365,-20027.6325788,0.00023304,2]
[366847154,1750510232377,-599.03060941,0.00023304,2]
[366847155,1750510232389,-1399.93190357,0.00023304,2]
[366847156,1750510232400,-460.0,0.00023304,2]
[366847157,1750510232412,-1413.40490822,0.00023304,2]
[366847158,1750510232422,-2347.87260389,0.00023352,2]
[366847159,1750510232431,-161.06,0.00023363,2]
[366847160,1750510232441,-659.6,0.00023378,2]
[366847161,1750510232450,-1500.0,0.00023392,2]
[366847162,1750510232459,-754.38008321,0.00023407,2]
[366847185,1750510237637,-396.01941625,0.00023407,2]
[366847186,1750510237650,-1284.34439078,0.00023407,2]
[366847187,1750510237660,-352.39,0.00023421,2]
[366847190,1750510237669,-2524.82941417,0.00023462,2]
[366847192,1750510237680,-160.26,0.00023479,2]
[366847194,1750510237991,-201.0,0.00023502,4]
[366847195,1750510238006,-167.57724717,0.00023517,2]
[366847196,1750510238016,-166.29,0.00023597,2]
[366847197,1750510238026,-349.09386877,0.00023624,9]
[366847198,1750510238035,-223.0,0.00023691,2]
[366847199,1750510238044,-516.59,0.000237,7]
[366847200,1750510238054,-500.0,0.000237,7]
[366847201,1750510238063,-500.0,0.000237,7]
[366847202,1750510238074,-500.0,0.000237,7]
[366847203,1750510238085,-480.51,0.000237,7]
[366847204,1750510238095,-2705.44528236,0.00023727,2]
[366847205,1750510238105,-63.79938102,0.00023749,2]
[366847206,1750510238121,-184.06061898,0.00023749,2]
[366847208,1750510238130,-254.83,0.00023749,2]
[366847211,1750510238140,-303.66,0.00023749,2]
[366847212,1750510238149,-246.38,0.00023749,2]
[366847213,1750510238160,-2923.92195717,0.00023828,2]
[366847214,1750510238176,-411.07804283,0.00023828,2]
[366847215,1750510238186,-946.0,0.00023828,2]
[366847216,1750510238195,-638.0,0.00023828,2]
[366847217,1750510238204,-803.0,0.00023828,2]
[366847218,1750510238214,-591.0,0.00023828,2]
[366847219,1750510238223,-559.0,0.00023828,2]
[366847220,1750510238233,-2005.0,0.00023828,2]
[366847221,1750510238243,-1278.0,0.00023828,2]
[366847222,1750510238253,-928.0,0.00023828,2]
[366847223,1750510238263,-1676.0,0.00023828,2]
[366847224,1750510238271,-5630.51674603,0.00023828,2]
[366847225,1750510238283,-1504.48325397,0.00023828,2]
[366847227,1750510238293,-333.214,0.00023828,2]
[366847229,1750510238303,-386.359,0.00023828,2]
[366847231,1750510238312,-156.0,0.00023828,2]
[366847232,1750510238321,-227.84,0.00023836,2]
[366847234,1750510238331,-168.0,0.00024032,2]
[366847235,1750510238339,-607.63,0.00024174,2]
[366847236,1750510238348,-1009.8,0.00024174,2]
[366847237,1750510238359,-349.09386877,0.00024245,10]
[366847238,1750510238368,-1000.0,0.000244,2]
[366847239,1750510238376,-126.97114251,0.000244,2]
[366847240,1750510238388,-2373.02885749,0.000244,2]
[366847241,1750510238399,-168.0,0.00024419,2]
[366847242,1750510238408,-1124.84,0.0002442,2]
[366847243,1750510238417,-150.0,0.00024421,2]
[366847244,1750510238426,-150.0,0.00024421,2]
[366847245,1750510238435,-150.0,0.00024422,2]
[366847246,1750510238444,-150.0,0.00024423,2]
[366847247,1750510238453,-150.0,0.00024427,2]
[366847248,1750510238463,-150.0,0.00024428,2]
[366847249,1750510238472,-400.0,0.00024437,2]
[366847250,1750510238481,-215.0738,0.00024446,2]
[366847251,1750510238490,-150.0,0.00024447,2]
[366847252,1750510238499,-150.0,0.00024454,2]
[366847253,1750510238508,-1000.0,0.00024454,2]
[366847254,1750510238517,-150.0,0.00024455,2]
[366847255,1750510238526,-150.0,0.00024455,2]
[366847256,1750510238536,-1000.0,0.00024456,2]
[366847257,1750510238545,-150.0,0.00024457,2]
[366847258,1750510238554,-150.0,0.00024461,2]
[366847259,1750510238563,-150.0,0.00024462,2]
[366847260,1750510238572,-406.36077028,0.00024466,2]
[366847261,1750510238582,-150.0,0.00024468,2]
[366847262,1750510238591,-150.0,0.00024469,2]
[366847263,1750510238600,-150.0,0.00024469,2]
[366847264,1750510238609,-150.0,0.00024472,2]
[366847265,1750510238619,-150.0,0.00024474,2]
[366847266,1750510238628,-150.0,0.00024477,2]
[366847267,1750510238637,-150.0,0.00024479,2]
[366847268,1750510238647,-764.956,0.0002448,7]
[366847269,1750510238657,-150.0,0.0002448,2]
[366847270,1750510238666,-150.0,0.00024484,2]
[366847271,1750510238676,-150.0,0.00024486,2]
[366847272,1750510238685,-150.0,0.00024492,2]
[366847273,1750510238694,-1032.56240666,0.00024493,2]
[366847274,1750510238706,-967.43759334,0.00024493,2]
[366847275,1750510238716,-150.0,0.00024493,2]
[366847276,1750510238725,-1000.0,0.00024494,2]
[366847277,1750510238734,-900.20857487,0.00024494,2]
[366847278,1750510238746,-99.79142513,0.00024494,2]
[366847279,1750510238755,-1022.98857487,0.000245,3]
[366847280,1750510238767,-32310.01142513,0.000245,3]
[366847281,1750510238777,-33333.0,0.000245,4]
[366847282,1750510238786,-27548.6387142,0.000245,6]
[366847283,1750510238795,-1000.0,0.000245,2]
[366847284,1750510238804,-600.0,0.000245,8]
[366847285,1750510238814,-834.26476573,0.000245,3]
[366847286,1750510238823,-150.0,0.00024501,2]
[366847287,1750510238832,-150.0,0.00024505,2]
[366847288,1750510238842,-150.0,0.00024506,2]
[366847289,1750510238852,-150.0,0.00024506,2]
[366847290,1750510238862,-150.0,0.00024509,2]
[366847291,1750510238871,-150.0,0.00024518,2]
[366847292,1750510238881,-150.0,0.00024518,2]
[366847293,1750510238890,-4118.82937198,0.00024521,2]
[366847294,1750510238900,-150.0,0.00024522,2]
[366847295,1750510238909,-150.0,0.00024522,2]
[366847296,1750510238919,-150.0,0.00024527,2]
[366847297,1750510238928,-150.0,0.0002453,2]
[366847298,1750510238937,-150.0,0.00024533,2]
[366847299,1750510238947,-150.0,0.00024535,2]
[366847300,1750510238956,-150.0,0.00024538,2]
[366847301,1750510238965,-150.0,0.00024538,2]
[366847302,1750510238975,-150.0,0.00024538,2]
[366847303,1750510238984,-150.0,0.00024542,2]
[366847304,1750510238993,-150.0,0.00024543,2]
[366847305,1750510239002,-150.0,0.00024545,2]
[366847306,1750510239011,-150.0,0.00024546,2]
[366847307,1750510239020,-218.18996484,0.00024546,2]
[366847308,1750510239029,-150.0,0.00024551,2]
[366847309,1750510239039,-150.0,0.00024551,2]
[366847310,1750510239048,-150.0,0.00024555,2]
[366847311,1750510239057,-150.0,0.00024556,2]
[366847312,1750510239066,-1000.0,0.00024556,2]
[366847313,1750510239078,-150.0,0.00024561,2]
[366847314,1750510239088,-150.0,0.00024561,2]
[366847315,1750510239098,-150.0,0.00024564,2]
[366847316,1750510239107,-150.0,0.00024565,2]
[366847317,1750510239116,-150.0,0.00024568,2]
[366847318,1750510239126,-150.0,0.00024569,2]
[366847319,1750510239135,-150.0,0.0002457,2]
[366847320,1750510239144,-355.19433777,0.00024573,2]
[366847321,1750510239153,-150.0,0.00024574,2]
[366847322,1750510239163,-150.0,0.00024574,2]
[366847323,1750510239172,-150.0,0.00024577,2]
[366847324,1750510239181,-150.0,0.00024583,2]
[366847325,1750510239191,-181.16282004,0.00024583,2]
[366847326,1750510239200,-1000.0,0.00024583,2]
[366847327,1750510239208,-13465.0302,0.00024583,2]
[366847328,1750510239218,-500.0,0.00024583,2]
[366847329,1750510239228,-629.1437,0.00024583,2]
[366847330,1750510239237,-150.0,0.00024585,2]
[366847331,1750510239246,-150.0,0.00024589,2]
[366847332,1750510239256,-1459.0,0.00024589,2]
[366847333,1750510239265,-150.0,0.0002459,2]
[366847334,1750510239274,-150.0,0.0002459,2]
[366847335,1750510239284,-2630.609001,0.00024592,2]
[366847336,1750510239293,-150.0,0.00024593,2]
[366847337,1750510239302,-150.0,0.00024597,2]
[366847338,1750510239311,-5000.0,0.00024599,2]
[366847339,1750510239320,-558.6462,0.000246,3]
[366847340,1750510239330,-9999.0,0.000246,2]
[366847341,1750510239339,-22222.0,0.000246,2]
[366847342,1750510239349,-291.1448334,0.000246,2]
[366847343,1750510239359,-894.556144,0.000246,2]
[366847344,1750510239368,-1200.0,0.000246,8]
[366847345,1750510239378,-200.0,0.000246,2]
[366847346,1750510239387,-181.16282004,0.000246,2]
[366847347,1750510239396,-150.0,0.00024601,2]
[366847348,1750510239406,-180.0,0.00024601,2]
[366847349,1750510239416,-150.0,0.00024602,2]
[366847350,1750510239425,-150.0,0.00024604,2]
[366847351,1750510239436,-150.0,0.00024604,2]
[366847352,1750510239445,-150.0,0.00024607,2]
[366847353,1750510239455,-150.0,0.00024609,2]
[366847354,1750510239465,-150.0,0.00024609,2]
[366847355,1750510239474,-150.0,0.00024618,2]
[366847356,1750510239484,-1165.59,0.0002462,2]
[366847357,1750510239493,-2331.18,0.0002462,2]
[366847358,1750510239502,-1165.59,0.0002462,2]
[366847359,1750510239512,-1165.59,0.0002462,2]
[366847360,1750510239521,-1165.59,0.0002462,2]
[366847361,1750510239531,-1165.59,0.0002462,2]
[366847362,1750510239540,-1165.59,0.0002462,2]
[366847363,1750510239549,-1165.59,0.0002462,2]
[366847364,1750510239559,-1165.59,0.0002462,2]
[366847365,1750510239568,-1165.59,0.0002462,2]
[366847366,1750510239578,-1165.59,0.0002462,2]
[366847367,1750510239587,-585.03,0.0002462,2]
[366847368,1750510239597,-1165.59,0.0002462,2]
[366847369,1750510239607,-1165.59,0.0002462,2]
[366847370,1750510239616,-150.0,0.00024621,2]
[366847371,1750510239627,-150.0,0.00024623,2]
[366847373,1750510239636,-191.52175083,0.00024623,2]
[366847375,1750510239646,-150.0,0.00024625,2]
[366847376,1750510239656,-150.0,0.00024625,2]
[366847377,1750510239665,-150.0,0.0002463,2]
[366847378,1750510239675,-150.0,0.0002463,2]
[366847379,1750510239686,-150.0,0.00024631,2]
[366847380,1750510239696,-150.0,0.00024639,2]
[366847381,1750510239706,-150.0,0.00024639,2]
[366847382,1750510239717,-150.0,0.00024641,2]
[366847383,1750510239726,-150.0,0.00024644,2]
[366847384,1750510239736,-1000.0,0.00024647,2]
[366847385,1750510239746,-150.0,0.00024651,2]
[366847386,1750510239756,-150.0,0.00024651,2]
[366847387,1750510239766,-150.0,0.00024656,2]
[366847388,1750510239775,-150.0,0.00024657,2]
[366847389,1750510239786,-6015.0,0.00024658,4]
[366847390,1750510239795,-156.587,0.00024659,2]
[366847391,1750510239805,-150.0,0.0002466,2]
[366847392,1750510239815,-150.0,0.00024661,2]
[366847393,1750510239825,-150.0,0.00024662,2]
[366847394,1750510239835,-555.22722078,0.00024667,2]
[366847395,1750510239846,-150.0,0.00024667,2]
[366847396,1750510239856,-350.0,0.00024667,2]
[366847397,1750510239864,-1000.0,0.00024669,2]
[366847398,1750510239874,-500.0,0.0002467,2]
[366847399,1750510239884,-500.0,0.0002467,2]